bitfinex-derivatives/quotes_BNBF0:USTF0_20250413
["timestamp","ask_amount","ask_price","bid_price","bid_amount"]
[1744573641832,2.17558316,581.34,580.44,0.31635475]
[1744573642037,2.51962182,581.33,580.44,0.31635475]
[1744573642239,2.17558316,581.32,580.44,0.31635475]
[1744573642439,2.17558316,581.31,580.45,1.00828479]
[1744573642740,2.17558316,581.3,580.46,0.31628479]
[1744573643035,2.17558316,581.29,580.46,0.31628479]
[1744573643235,2.17558316,581.28,580.46,0.31628479]
[1744573643439,2.17558316,581.27,580.46,0.31628479]
[1744573643639,2.17558316,581.26,580.46,0.31628479]
[1744573643839,2.17558316,581.25,580.45,0.692]
[1744573644042,0.69151273,581.24,580.46,0.31622381]
[1744573644233,0.57003866,581.33,580.46,0.31622381]
[1744573644437,2.17806011,581.32,580.46,0.31622381]
[1744573644639,0.57003866,581.33,580.47,0.31622381]
[1744573644842,0.69256109,581.32,580.46,0.31622381]
[1744573645143,0.57003866,581.33,580.47,0.31622381]
[1744573645345,0.57003866,581.33,580.45,0.692]
[1744573645541,0.57003866,581.33,580.46,0.31615983]
[1744573645939,0.226,581.33,580.46,0.31615983]
[1744573646846,0.226,581.33,580.45,0.692]
[1744573647042,0.226,581.33,580.46,0.66064696]
[1744573647247,0.226,581.33,580.47,0.31609265]
[1744573647646,0.226,581.33,580.48,0.31609265]
[1744573647841,0.226,581.33,580.49,0.31609265]
[1744573648045,0.226,581.33,580.5,0.31609265]
[1744573648242,0.226,581.33,580.51,0.31609265]
[1744573648546,0.226,581.33,580.52,0.3160873]
[1744573648947,0.226,581.33,580.53,0.3160873]
[1744573649446,0.226,581.33,580.54,0.3160873]
[1744573649648,0.226,581.33,580.55,0.3160873]
[1744573649849,0.226,581.33,580.56,0.3160873]
[1744573650150,0.226,581.33,580.57,0.66053604]
[1744573650342,0.226,581.33,580.58,0.31604701]
[1744573650547,0.226,581.33,580.59,0.31604701]
[1744573650744,0.226,581.33,580.6,0.31604701]
[1744573650949,0.226,581.33,580.61,0.31604701]
[1744573651248,0.226,581.33,580.62,0.31604701]
[1744573651448,0.226,581.33,580.63,0.31604701]
[1744573651652,0.226,581.33,580.64,0.3159233]
[1744573651950,0.226,581.33,580.65,0.3159233]
[1744573652150,0.226,581.33,580.66,0.66035894]
[1744573652350,0.226,581.33,580.67,0.3159233]
[1744573652651,0.226,581.33,580.68,0.3159233]
[1744573652851,0.226,581.33,580.69,0.3159233]
[1744573653152,0.226,581.33,580.7,0.66032011]
[1744573653347,0.226,581.33,580.71,0.3159082]
[1744573653549,0.226,581.33,580.72,0.66030825]
[1744573653746,0.226,581.33,580.73,0.3159082]
[1744573653949,0.226,581.33,580.74,0.3159082]
[1744573654350,0.226,581.33,580.75,0.3159082]
[1744573654650,0.226,581.33,580.76,0.3159082]
[1744573654843,0.226,581.33,580.77,0.6602786]
[1744573655049,0.226,581.33,580.78,0.66027267]
[1744573655247,0.226,581.33,580.79,0.3159082]
[1744573655745,0.226,581.33,580.79,0.9119082]
[1744573656147,0.226,581.33,580.8,0.3159082]
[1744573656346,0.226,581.33,580.81,0.31591421]
[1744573656550,0.226,581.33,580.8,0.31591421]
[1744573657754,0.226,581.33,580.81,0.31591421]
[1744573658049,0.226,581.33,580.82,0.31591421]
[1744573658253,0.226,581.33,580.83,0.31591421]
[1744573658453,0.226,581.33,580.84,0.31591421]
[1744573658753,0.226,581.33,580.85,0.31591421]
[1744573658953,0.226,581.33,580.86,0.31591421]
[1744573659154,0.226,581.33,580.87,0.31591421]
[1744573659450,0.226,581.33,580.88,0.31591421]
[1744573659655,0.226,581.33,580.89,0.31591421]
[1744573659852,0.226,581.33,580.9,0.31591421]
[1744573660049,0.226,581.33,580.91,0.31591421]
[1744573660355,2.16125117,582.32,580.92,0.31591421]
[1744573660655,2.50471083,582.31,580.93,0.31591421]
[1744573660955,2.16125117,582.3,580.94,0.31583757]
[1744573661155,0.34345966,582.31,580.95,0.31583757]
[1744573661156,2.16125117,582.29,580.95,0.31583757]
[1744573661455,2.16125117,582.28,580.96,0.31583757]
[1744573661750,2.16125117,582.27,580.97,0.31583757]
[1744573661954,2.16125117,582.27,580.89,0.653]
[1744573661955,2.16125117,582.26,580.98,0.31583757]
[1744573662255,2.16125117,582.25,580.99,0.31583757]
[1744573662455,2.16125117,582.24,581.0,0.31583757]
[1744573662651,2.16125117,582.24,580.89,0.653]
[1744573662652,2.16125117,582.23,581.01,0.31583757]
[1744573662853,2.16125117,582.22,581.02,0.31583757]
[1744573663055,2.16125117,582.21,581.03,0.31583757]
[1744573663349,2.16125117,582.2,581.04,0.31583757]
[1744573663554,2.16125117,582.19,580.9,0.31583757]
[1744573663753,2.16125117,582.18,580.91,0.31583757]
[1744573663955,2.16125117,582.17,580.92,0.34428148]
[1744573664153,2.50479933,582.16,580.93,0.31583613]
[1744573664353,2.50480523,582.15,580.93,0.31583613]
[1744573664554,2.16125117,582.14,580.93,0.95383613]
[1744573664857,2.16125117,582.13,580.94,0.31583613]
[1744573665054,0.68691812,582.12,580.94,0.31583613]
[1744573665354,0.6838836,582.11,580.94,0.31583613]
[1744573665552,0.6838836,582.1,580.94,0.31583613]
[1744573665756,0.34355406,582.15,580.94,0.31583613]
[1744573666155,2.49498879,582.15,580.94,0.31583613]
[1744573666356,2.15143473,582.14,580.94,0.31583613]
[1744573666557,0.68379935,582.13,580.94,0.31583613]
[1744573666755,0.68379935,582.12,580.94,0.31583613]
[1744573667051,0.68345704,582.11,580.94,0.31583613]
[1744573667258,0.68345704,582.1,580.95,0.31583861]
[1744573667555,0.34355406,582.15,580.96,0.31583861]
[1744573667759,0.34355406,582.15,580.94,0.31583861]
[1744573667958,0.34355406,582.15,580.95,0.31583861]
[1744573668158,0.34355406,582.15,580.94,0.31583861]
[1744573668359,0.34355406,582.15,580.95,0.31583861]
[1744573668554,0.34355406,582.15,580.96,0.31583861]
[1744573668752,0.34355406,582.15,580.94,0.31583861]
[1744573668958,0.34355406,582.15,580.95,0.3442637]
[1744573669159,0.34355406,582.15,580.96,0.31583861]
[1744573669361,0.34355406,582.15,580.97,0.34425185]
[1744573669559,0.34355406,582.15,580.98,0.31583861]
[1744573669761,0.34355406,582.15,580.99,0.34424]
[1744573669962,0.34355406,582.15,581.0,0.31583861]
[1744573670264,0.34355406,582.15,581.01,0.81483861]
[1744573670462,0.34355406,582.15,581.02,0.31583861]
[1744573670659,0.34355406,582.15,581.03,0.31583861]
[1744573670858,0.34355406,582.15,581.04,0.31583861]
[1744573671060,1.80903351,582.15,581.05,0.31583861]
[1744573671261,2.14865448,582.14,581.06,0.31588836]
[1744573671461,2.14865448,582.13,581.07,0.31588836]
[1744573671657,2.49222625,582.12,581.02,0.31588836]
[1744573671856,0.225,582.17,581.03,0.31588836]
[1744573671857,2.49223215,582.11,581.03,0.31588836]
[1744573672063,2.49223805,582.1,581.04,0.31588836]
[1744573672263,2.49224395,582.09,581.05,0.31588836]
[1744573672562,2.14865448,582.08,581.06,0.31588836]
[1744573672757,0.225,582.17,581.02,0.31588836]
[1744573672758,2.49225576,582.07,581.02,0.31588836]
[1744573672960,2.14865448,582.06,581.02,0.31588836]
[1744573673157,2.49226757,582.05,581.02,0.31588836]
[1744573673364,2.14865448,582.04,581.02,0.31588836]
[1744573673559,2.14865448,582.03,581.02,0.31588836]
[1744573673764,2.14865448,582.02,581.02,0.31588836]
[1744573673964,2.14865448,582.01,581.02,0.31588836]
[1744573674162,2.14865448,582.0,581.02,0.31588836]
[1744573674360,2.14865448,581.99,581.02,0.31588836]
[1744573674567,2.4923089,581.98,581.02,0.31588836]
[1744573674763,2.14865448,581.97,581.02,0.31588836]
[1744573674962,2.14865448,581.97,581.01,0.499]
[1744573674963,2.14865448,581.96,581.01,0.499]
[1744573675162,2.14865448,581.95,581.02,0.31596871]
[1744573675367,2.14869174,581.94,581.02,0.31596871]
[1744573675566,2.14869174,581.93,581.02,0.31596871]
[1744573675761,2.14869174,581.92,581.02,0.31596871]
[1744573675964,2.14869174,581.91,581.02,0.31596871]
[1744573676162,2.14869174,581.9,581.02,0.31596871]
[1744573676363,2.14869174,581.89,581.02,0.31596871]
[1744573676662,2.14869174,581.88,581.02,0.31596871]
[1744573676865,2.14869174,581.87,581.02,0.31596871]
[1744573677066,2.14869174,581.86,581.02,0.31596871]
[1744573677264,2.14869174,581.85,581.02,0.31596871]
[1744573677467,2.14869174,581.84,581.02,0.31596871]
[1744573677669,2.14869174,581.83,581.02,0.31596871]
[1744573677866,2.14869174,581.82,581.02,0.31596871]
[1744573678068,2.14869174,581.81,581.01,0.499]
[1744573678266,2.14869174,581.8,581.02,0.31605493]
[1744573678467,2.14869174,581.79,581.02,0.31605493]
[1744573678769,2.14869174,581.78,581.02,0.31605493]
[1744573678967,2.14869174,581.77,581.02,0.31605493]
[1744573679171,2.14869174,581.76,580.44,0.31605493]
[1744573679373,2.14869174,581.75,580.48,0.29944242]
[1744573679671,2.14869174,581.74,580.49,0.66059144]
[1744573679872,2.14869174,581.73,580.5,0.31605493]
[1744573680072,2.49249975,581.72,580.51,0.31605493]
[1744573680268,2.14869174,581.71,580.52,0.31605493]
[1744573680468,2.14869174,581.7,580.53,0.31605493]
[1744573680668,2.14869174,581.69,580.54,0.31605493]
[1744573680872,2.14869174,581.68,580.55,0.31605493]
[1744573681172,2.14869174,581.67,580.56,0.31605493]
[1744573681373,0.68293749,581.66,580.57,0.31605493]
[1744573681570,0.68293749,581.65,580.58,0.31605493]
[1744573681873,0.68293749,581.64,580.59,0.31605493]
[1744573682068,0.225,581.66,580.6,0.31605493]
[1744573682473,0.225,581.66,580.61,0.31605493]
[1744573682673,0.225,581.66,580.62,0.31605493]
[1744573682873,0.225,581.66,580.63,0.31605493]
[1744573683074,0.225,581.66,580.64,0.31605493]
[1744573683377,0.91018891,581.66,580.65,0.31605493]
[1744573683579,0.225,581.66,580.66,0.31605493]
[1744573683978,0.225,581.66,580.67,0.31605493]
[1744573684173,0.225,581.66,580.68,0.31605493]
[1744573684378,0.225,581.66,580.69,0.31605493]
[1744573684577,0.225,581.66,580.7,0.31605493]
[1744573684774,0.91049243,581.66,580.71,0.31605493]
[1744573685079,0.91049243,581.66,580.67,0.571]
[1744573685080,0.68549243,581.65,580.72,0.83105493]
[1744573685279,0.225,581.66,580.73,0.31605493]
[1744573687273,0.6862285,581.65,580.73,0.31605493]
[1744573687479,2.15959875,581.64,580.73,0.31605493]
[1744573687678,2.15959875,581.63,580.73,0.31605493]
[1744573687879,2.15959875,581.62,580.73,0.31605493]
[1744573688173,2.15959875,581.61,580.73,0.31605493]
[1744573688378,0.6862285,581.6,580.72,1.133]
[1744573688580,0.225,581.66,580.72,1.133]
[1744573689577,0.225,581.66,580.73,0.31606552]
[1744573689878,0.225,581.66,580.74,0.31606552]
[1744573690075,0.225,581.66,580.75,0.31606552]
[1744573690278,0.225,581.66,580.76,0.31606552]
[1744573690480,0.225,581.66,580.77,0.31606552]
[1744573690679,0.225,581.66,580.78,0.31606552]
[1744573690879,0.225,581.66,580.73,0.31606552]
[1744573691076,0.225,581.66,580.74,0.31606552]
[1744573691375,0.225,581.66,580.72,1.133]
[1744573691376,0.225,581.66,580.73,0.31606552]
[1744573691579,0.225,581.66,580.74,0.31606552]
[1744573691777,0.225,581.66,580.73,0.31606552]
[1744573691977,0.225,581.66,580.74,0.31606552]
[1744573692175,0.225,581.66,580.73,0.31606552]
[1744573692378,0.225,581.66,580.74,0.31606552]
[1744573692577,0.225,581.66,580.75,0.31606552]
[1744573692782,0.225,581.66,580.73,0.31606552]
[1744573692983,0.225,581.66,580.74,0.31606552]
[1744573693283,0.225,581.66,580.75,0.31606552]
[1744573693483,0.225,581.66,580.76,0.31606552]
[1744573693683,0.225,581.66,580.77,0.66043592]
[1744573693879,0.225,581.66,580.78,0.31606552]
[1744573694080,0.225,581.66,580.79,0.31606552]
[1744573694284,0.225,581.66,580.8,0.31606552]
[1744573694586,0.225,581.66,580.81,0.31606552]
[1744573694784,0.225,581.66,580.77,0.3443704]
[1744573694985,0.225,581.66,580.78,0.31593274]
[1744573695185,0.225,581.66,580.79,0.66029128]
[1744573695386,0.225,581.66,580.8,0.31593274]
[1744573695581,0.225,581.66,580.81,0.31593274]
[1744573695780,0.225,581.66,580.82,0.31593274]
[1744573696187,0.225,581.66,580.83,0.31593274]
[1744573696586,0.225,581.66,580.84,0.31593274]
[1744573696786,0.225,581.66,580.85,0.31593274]
[1744573696983,0.225,581.66,580.86,0.31593274]
[1744573697190,0.225,581.66,580.87,0.31593274]
[1744573697391,0.225,581.66,580.88,0.31593274]
[1744573697887,0.225,581.66,580.8,0.34435261]
[1744573698190,0.225,581.66,580.81,0.31598877]
[1744573698391,0.225,581.66,580.82,0.31598877]
[1744573698693,0.225,581.66,580.83,0.31598877]
[1744573698890,0.225,581.66,580.84,0.31598877]
[1744573699094,0.225,581.66,580.85,0.31598877]
[1744573699290,0.225,581.66,580.85,0.81598877]
[1744573699594,0.225,581.66,580.86,0.31594728]
[1744573702696,0.225,581.66,580.87,0.31598311]
[1744573702892,0.225,581.66,580.86,0.31598311]
[1744573703092,0.225,581.66,580.87,0.31598311]
[1744573703397,0.225,581.66,580.88,0.31598311]
[1744573703598,0.225,581.66,580.89,0.31598311]
[1744573704293,0.225,581.66,580.88,0.436]
[1744573704495,2.16699877,581.83,580.89,0.31599854]
[1744573704697,2.16699877,581.82,580.89,0.31599854]
[1744573704897,2.16699877,581.81,580.89,0.31599854]
[1744573705097,2.16699877,581.8,580.89,0.31599854]
[1744573705298,2.16699877,581.79,580.89,0.31599854]
[1744573705501,2.16699877,581.78,580.89,0.31599854]
[1744573705701,2.16699877,581.77,580.89,0.31599854]
[1744573705999,2.16699877,581.76,580.9,0.31599913]
[1744573706195,2.16699877,581.75,580.89,0.31599913]
[1744573706400,2.16699877,581.74,580.89,0.31599913]
[1744573706602,0.29941665,582.17,580.89,0.31599913]
[1744573706603,2.16699877,581.73,580.89,0.31599913]
[1744573706803,2.16699877,581.72,580.89,0.31599913]
[1744573707100,2.16699877,581.71,580.89,0.31599913]
[1744573707301,2.16699877,581.7,580.9,0.572]
[1744573707502,2.16699877,581.69,580.91,0.31600132]
[1744573707796,2.16699877,581.68,580.91,0.31600132]
[1744573708001,2.16699877,581.67,580.91,0.31600132]
[1744573708198,2.16699877,581.66,580.91,0.31600132]
[1744573708501,2.16699877,581.65,580.91,0.31600132]
[1744573708701,2.16699877,581.64,580.91,0.31600132]
[1744573708903,2.16699877,581.63,580.91,0.31600132]
[1744573709202,2.16699877,581.62,580.92,0.31605148]
[1744573709398,2.16699877,581.61,580.92,0.31605148]
[1744573709702,2.16699877,581.6,580.92,0.31605148]
[1744573709901,2.16699877,581.59,580.92,0.31605148]
[1744573710197,2.16699877,581.58,580.92,0.31605148]
[1744573710401,2.16699877,581.57,580.92,0.31605148]
[1744573710600,0.68839627,581.56,580.92,0.31605148]
[1744573710797,0.69256365,581.55,580.92,0.31605148]
[1744573711098,0.225,581.71,580.92,0.31605148]
[1744573711303,2.17863406,581.7,580.91,0.47]
[1744573711505,2.17863406,581.69,580.92,0.3160791]
[1744573711698,2.17863406,581.69,580.91,0.47]
[1744573711699,2.17863406,581.68,580.91,0.47]
[1744573712003,2.52247163,581.67,580.91,0.47]
[1744573712201,2.17863406,581.66,580.91,1.121]
[1744573712405,2.17863406,581.65,580.91,1.121]
[1744573712603,2.17863406,581.64,580.91,1.121]
[1744573712805,2.17863406,581.63,580.91,1.121]
[1744573713002,2.17863406,581.62,580.91,1.121]
[1744573713207,2.17863406,581.61,580.91,1.121]
[1744573713408,2.17863406,581.6,580.91,1.121]
[1744573713609,2.17863406,581.59,580.92,0.31606561]
[1744573713808,2.17863406,581.58,580.91,1.121]
[1744573714012,2.17863406,581.57,580.92,0.31605304]
[1744573714307,2.17863406,581.56,580.92,0.31605304]
[1744573714511,2.17863406,581.55,580.92,0.31605304]
[1744573714804,2.17863406,581.54,580.92,0.31605304]
[1744573715001,0.69246017,581.53,580.92,0.31605304]
[1744573715206,2.1779007,581.52,580.92,0.31605304]
[1744573715407,2.17791303,581.51,580.92,0.31605304]
[1744573715604,0.69246017,581.5,580.92,0.98805304]
[1744573715805,0.34383757,581.67,580.93,0.31605304]
[1744573716110,2.17760335,581.66,580.93,0.31605304]
[1744573716410,2.17760335,581.65,580.93,0.31605304]
[1744573716609,2.17760335,581.64,580.93,0.31605304]
[1744573716804,2.17760335,581.63,580.93,0.31605304]
[1744573717011,2.17760335,581.62,580.93,0.31605304]
[1744573717209,2.17760335,581.61,580.93,0.31605304]
[1744573717406,2.17760335,581.6,580.93,0.31605304]
[1744573717607,2.17760335,581.59,580.93,0.31605304]
[1744573717804,2.17760335,581.58,580.93,0.31605304]
[1744573718006,2.17760335,581.57,580.93,0.31605304]
[1744573718312,2.17760335,581.56,580.93,0.31605304]
[1744573718507,0.69213432,581.55,580.93,0.31605304]
[1744573718812,0.34383757,581.67,580.92,0.672]
[1744573719010,0.34383757,581.67,580.93,0.31601465]
[1744573719011,2.17802949,581.66,580.93,0.31601465]
[1744573719207,2.17802949,581.65,580.93,0.31601465]
[1744573719411,2.17802949,581.64,580.93,0.31601465]
[1744573719608,0.34383757,581.67,580.93,0.31601465]
[1744573719806,0.225,581.71,580.93,0.31601465]
[1744573719807,2.17878309,581.7,580.93,0.31601465]
[1744573720108,2.17878309,581.69,580.93,0.31601465]
[1744573720307,0.69250358,581.68,580.93,0.31601465]
[1744573720609,0.225,581.71,580.93,0.31601465]
[1744573721212,0.225,581.71,580.93,0.81601465]
[1744573721412,0.225,581.71,580.94,0.31601465]
[1744573723815,0.225,581.71,580.95,0.31592788]
[1744573724011,0.225,581.71,580.96,0.31592788]
[1744573724213,0.225,581.71,580.97,0.31592788]
[1744573724418,0.225,581.71,580.98,0.31592788]
[1744573724817,0.225,581.71,580.99,0.31592788]
[1744573725013,0.225,581.71,581.0,0.31592788]
[1744573725218,0.225,581.71,581.01,0.31592788]
[1744573725417,0.225,581.71,581.02,0.31592788]
[1744573725718,0.225,581.71,580.94,0.31592788]
[1744573725918,0.225,581.71,580.95,0.31592788]
[1744573726119,0.225,581.71,580.96,0.31592788]
[1744573726320,0.225,581.71,580.97,0.31592788]
[1744573726519,0.225,581.71,580.98,0.31592788]
[1744573726720,0.225,581.71,580.98,0.431]
[1744573727121,0.225,581.71,580.99,0.31590999]
[1744573728721,0.225,581.71,581.0,0.31594664]
[1744573729022,0.225,581.71,580.99,0.31594664]
[1744573729223,0.69371002,581.7,581.0,0.31594664]
[1744573729522,0.69371002,581.69,581.01,0.31594664]
[1744573729721,0.225,581.71,581.02,0.31594664]
[1744573729917,0.69434502,581.7,580.99,0.31594664]
[1744573730121,0.225,581.71,580.98,0.431]
[1744573730122,2.18519589,581.69,580.98,0.431]
[1744573730423,2.18519589,581.68,580.99,0.31595057]
[1744573730717,0.69434502,581.67,580.99,0.31595057]
[1744573730921,0.225,581.71,580.99,0.31595057]
[1744573731122,2.18553928,581.7,580.99,0.31595057]
[1744573731322,2.18553928,581.69,580.99,0.31595057]
[1744573731522,2.18553928,581.68,580.99,0.31595057]
[1744573731823,2.18553928,581.67,581.0,0.31595926]
[1744573732024,0.225,581.71,580.99,0.31595926]
[1744573732325,2.18627809,581.7,581.0,0.31595926]
[1744573732621,2.18627809,581.69,581.01,0.31595926]
[1744573732822,2.18627809,581.68,580.99,0.31595926]
[1744573733019,2.18627809,581.67,581.0,0.31595926]
[1744573733218,2.18627809,581.66,580.98,0.431]
[1744573733419,2.18627809,581.65,580.99,0.31597251]
[1744573733619,2.18627809,581.64,580.99,0.31597251]
[1744573733820,2.18627809,581.63,580.99,0.31597251]
[1744573734019,2.18627809,581.62,580.99,0.31597251]
[1744573734219,2.18627809,581.61,580.99,0.31597251]
[1744573734420,2.18627809,581.6,581.0,0.499]
[1744573734622,2.18627809,581.59,581.01,0.31597251]
[1744573734919,2.18627809,581.58,581.01,0.31597251]
[1744573735121,2.18627809,581.57,581.01,0.31597251]
[1744573735328,0.29938961,582.27,581.01,0.31597251]
[1744573735625,2.49323425,582.26,581.01,0.31597251]
[1744573735826,2.49323425,582.25,581.01,0.31597251]
[1744573736027,0.29938961,582.27,581.01,0.31597251]
[1744573736028,0.34355406,582.15,581.01,0.31597251]
[1744573736228,2.49323425,582.14,581.01,0.31597251]
[1744573736428,2.83680012,582.13,581.01,0.31597251]
[1744573736635,2.83680602,582.12,581.01,0.31597251]
[1744573736930,2.83681192,582.11,581.01,0.31597251]
[1744573737231,2.49323425,582.1,581.01,0.31597251]
[1744573737528,2.83682372,582.09,581.01,0.31597251]
[1744573737829,3.06182963,582.08,581.01,0.31597251]
[1744573738128,2.83683553,582.07,581.01,0.31597251]
[1744573738326,2.52978855,582.06,581.01,0.31597251]
[1744573738522,2.18618137,582.05,581.01,0.31597251]
[1744573738729,2.18618137,582.04,581.01,0.31597251]
[1744573738925,2.18618137,582.03,581.01,0.31597251]
[1744573739125,2.18618137,582.02,581.01,0.31597251]
[1744573739323,2.18618137,582.01,581.01,0.31597251]
[1744573739525,2.18618137,582.0,581.02,0.498]
[1744573739728,2.18618137,581.99,581.03,0.31597251]
[1744573740026,2.18618137,581.98,581.03,0.31597251]
[1744573740224,2.18618137,581.97,581.03,0.31597251]
[1744573740424,2.18618137,581.96,581.03,0.31597251]
[1744573740627,2.18618137,581.95,581.03,0.31597251]
[1744573740827,2.18618137,581.94,581.03,0.31597251]
[1744573741031,2.18618137,581.93,581.03,0.78697251]
[1744573741230,2.18618137,581.92,581.04,0.31597251]
[1744573741423,2.18618137,581.91,581.04,0.31597251]
[1744573741628,2.18618137,581.9,581.04,0.31597251]
[1744573741827,2.18618137,581.89,581.04,0.31597251]
[1744573742027,2.18618137,581.88,581.03,0.471]
[1744573742229,2.18618137,581.87,581.04,0.31596626]
[1744573742427,2.18618137,581.86,581.04,0.31596626]
[1744573742629,2.18618137,581.85,581.04,0.31596626]
[1744573742822,2.18618137,581.84,581.04,0.31596626]
[1744573743028,2.18618137,581.83,581.04,0.31596626]
[1744573743228,2.18618137,581.82,581.04,0.31596626]
[1744573743424,2.18618137,581.81,581.04,0.87796626]
[1744573743632,2.18618137,581.8,581.05,0.31596626]
[1744573743830,2.18618137,581.79,581.05,0.31596626]
[1744573744029,2.18618137,581.78,581.05,0.31596626]
[1744573744329,2.18618137,581.77,581.05,0.31596626]
[1744573744629,2.18618137,581.76,581.05,0.31596626]
[1744573744828,2.18618137,581.75,581.05,0.31596626]
[1744573745027,2.18618137,581.74,581.05,0.31596626]
[1744573745224,2.18618137,581.73,581.05,0.31596626]
[1744573745427,2.18618137,581.72,581.05,0.31596626]
[1744573745725,2.18618137,581.71,581.05,0.31596626]
[1744573746023,2.18618137,581.7,581.05,0.31596626]
[1744573746224,2.18618137,581.69,581.05,0.31596626]
[1744573746427,2.18618137,581.68,581.05,0.31596626]
[1744573746625,0.34360718,582.06,581.06,0.31595078]
[1744573746829,2.18959009,582.05,581.05,0.31595078]
[1744573747128,2.18959009,582.04,581.06,0.31595078]
[1744573747332,2.18959009,582.03,581.05,0.31595078]
[1744573747528,2.18959009,582.02,581.05,0.31595078]
[1744573747726,2.18959009,582.01,581.05,0.31595078]
[1744573747930,2.18959009,582.0,581.05,0.31595078]
[1744573748230,2.18959009,581.99,581.05,0.31595078]
[1744573748430,2.18959009,581.98,581.05,0.31595078]
[1744573748631,2.18959009,581.97,581.05,0.31595078]
[1744573748932,2.18959009,581.96,581.05,0.31595078]
[1744573749134,2.18959009,581.95,581.05,0.31595078]
[1744573749334,2.18959009,581.94,581.05,0.31595078]
[1744573749632,2.18991569,581.93,581.05,0.31595078]
[1744573749831,2.18991569,581.92,581.05,0.31595078]
[1744573750033,2.18991569,581.91,581.05,0.31595078]
[1744573750234,2.18991569,581.9,581.05,0.31595078]
[1744573750429,2.18991569,581.89,581.05,0.31595078]
[1744573750635,2.18991569,581.88,581.05,0.31595078]
[1744573750832,2.18991569,581.87,581.05,0.31595078]
[1744573751031,2.18991569,581.86,581.05,0.31595078]
[1744573751234,2.18991569,581.85,581.06,0.31589765]
[1744573751431,2.18991569,581.84,581.05,0.31589765]
[1744573751735,2.18991569,581.83,581.06,0.53]
[1744573751935,2.18991569,581.82,581.07,0.31589765]
[1744573752138,2.18991569,581.81,581.07,0.31589765]
[1744573752435,2.18991569,581.8,581.07,0.31589765]
[1744573752735,2.18991569,581.79,581.07,0.31589765]
[1744573752937,2.18991569,581.78,581.07,0.31589765]
[1744573753235,2.18991569,581.77,581.07,0.31589765]
[1744573753437,2.18991569,581.76,581.07,0.31589765]
[1744573753734,2.18991569,581.75,581.07,0.31589765]
[1744573753937,2.18991569,581.74,581.07,0.31589765]
[1744573754136,2.18991569,581.73,581.07,0.31589765]
[1744573754337,2.18991569,581.72,581.07,0.31589765]
[1744573754539,2.18991569,581.71,581.07,0.31589765]
[1744573754841,2.18921525,581.7,581.07,0.31589765]
[1744573755038,0.34360718,582.06,581.07,0.31589765]
[1744573755336,2.18925126,582.05,581.07,0.31589765]
[1744573755533,2.53287025,582.04,581.07,0.31589765]
[1744573755732,2.18925126,582.03,581.07,0.31589765]
[1744573755933,2.18925126,582.02,581.07,0.31589765]
[1744573756134,2.18925126,582.01,581.07,0.31589765]
[1744573756337,2.18925126,582.0,581.07,0.31589765]
[1744573756538,2.18925126,581.99,581.07,0.31589765]
[1744573756735,2.18925126,581.98,581.07,0.31589765]
[1744573756933,2.18925126,581.97,581.07,0.31589765]
[1744573757136,2.18925126,581.96,581.07,0.31589765]
[1744573757341,2.18925126,581.95,581.07,0.31589765]
[1744573757536,2.18925126,581.94,581.07,0.31589765]
[1744573757741,2.18925126,581.93,581.07,0.31589765]
[1744573758040,2.18925126,581.92,581.07,0.31589765]
[1744573758239,2.18925126,581.91,581.07,0.31589765]
[1744573758441,2.18925126,581.9,581.07,0.31589765]
[1744573758639,2.18925126,581.89,581.06,0.53]
[1744573758839,2.18925126,581.88,581.07,0.31589505]
[1744573759135,2.18925126,581.87,581.07,0.31589505]
[1744573759336,2.18925126,581.86,581.06,0.53]
[1744573759533,2.18925126,581.85,581.07,0.31588496]
[1744573759738,2.18925126,581.84,581.07,0.31588496]
[1744573759940,2.18925126,581.83,581.07,0.31588496]
[1744573760236,2.18982998,581.82,581.07,0.31588496]
[1744573760439,0.34361899,582.04,581.07,0.31588496]
[1744573760639,2.18962346,582.03,581.07,0.31588496]
[1744573760837,2.18962346,582.02,581.07,0.31588496]
[1744573761043,2.18962346,582.01,581.07,0.31588496]
[1744573761244,2.18962346,582.0,581.07,0.31588496]
[1744573761545,2.18962346,581.99,581.07,0.31588496]
[1744573761743,2.18962346,581.98,581.06,0.53]
[1744573761940,2.18951796,581.97,581.07,0.31585475]
[1744573762143,2.18951796,581.96,581.07,0.31585475]
[1744573762345,2.18951796,581.95,581.07,0.31585475]
[1744573762545,2.18951796,581.94,581.07,0.31585475]
[1744573762843,2.18951796,581.93,581.08,0.31585475]
[1744573763037,2.18951796,581.92,581.09,0.31585475]
[1744573763239,2.18951796,581.91,581.05,0.31585475]
[1744573763443,0.69582445,581.9,581.06,0.66005328]